{"text_format":"1","workbook":"xlsx","n_sheets":1,"sheets":["Formulário de isenção"],"not_rendered":{"charts":0,"images":1,"macros":1,"external_links":0,"defined_names":1,"comments":0,"pivot_tables":0},"unopened":[],"bounds":{"document_bytes":16777216,"sheet_cells":100000,"rows_first":2000,"rows_last":500,"rows_between":2000,"halvings":0,"cell_chars":16384,"cell_head_chars":4096},"cells_cut":0,"cells_raw":0,"read":"whole","date_system":"1900"}

{"sheet":"Formulário de isenção","index":0,"n_rows":83,"n_cols":37,"rows_kept":83,"cut":false,"hidden":false,"merged":[[69,2,69,4],[69,7,69,10],[72,1,72,13],[82,2,82,5],[82,7,82,12],[78,2,81,5],[78,7,81,12],[58,4,58,5],[63,2,63,8],[63,10,63,12],[65,2,65,12],[67,4,67,12],[31,4,31,6],[27,4,27,6],[25,1,25,13],[0,17,0,18],[61,1,61,13],[33,1,33,13],[35,4,35,5],[35,7,35,8],[35,10,35,12],[38,1,38,2],[38,5,38,6],[38,8,38,12],[40,9,40,10],[42,9,42,10],[46,8,46,12],[54,8,54,12],[0,20,0,21],[0,23,0,24],[22,1,22,13],[23,1,23,13],[29,4,29,6]]}
[null,null,null,null,null,null,null,null,null,null,null,null,null,null,null,null,null,"Lógica condicional \"praça\"",null,null,"Lógica condicional \"semana\"",null,null,"Lógica condicional \"Limitar datas\"",null,null,null,"GRUPO DE ISENTO","ID DO GRUPO","TIPO DE ISENÇÃO","TIPO","OPERADORA","Categoria","Descrição","Por","Sentido","Categoria"]
[null,null,null,null,null,null,null,null,null,null,null,null,null,null,null,null,null,false,{"$f":"IF($R2=TRUE,1,0)","v":0},null,false,{"$f":"IF(U2=TRUE,1,0)","v":0},"todos",false,{"$f":"IF(X2=TRUE,1,0)","v":0},null,null,"[definir]","-",null,"Placa","Sem Parar","Cat. 01","Automóvel, Caminhonete e Furgão","Dia ","Todos",{"$f":"AG2","v":"Cat. 01"}]
[null,null,null,null,null,null,null,null,null,null,null,null,null,null,null,null,null,null,null,null,null,null,null,null,null,null,null,"Rota do Oeste","01","Isento","Tag","Conectcar","Cat. 02","Caminhão (leve e Trator) e Furgão","Semana","Norte","Cat. 02"]
[null,null,null,null,null,null,null,null,null,null,null,null,null,null,null,null,null,false,{"$f":"IF($R4=TRUE,1,0)","v":0},null,false,{"$f":"IF(U4=TRUE,1,0)","v":0},"segunda",null,null,null,null,"PRF","02","Isento",null,"Auto Expresso","Cat. 03","Automóvel e Caminhonete com semi-reboque","Ano","sul","Cat. 03"]
[null,null,null,null,null,null,null,null,null,null,null,null,null,null,null,null,null,null,null,null,null,null,null,null,null,null,null,"Bombeiro","03","Isento",null,"Move Mais","Cat. 04","Caminhão (simples, Trator e semi-reboque) e Ônibus","Mês",null,"Cat. 04"]
[null,null,null,null,null,null,null,null,null,null,null,null,null,null,null,null,null,false,{"$f":"IF($R6=TRUE,1,0)","v":0},null,false,{"$f":"IF(U6=TRUE,1,0)","v":0},"terça","Lógica condicional \"Limitar período\"",null,null,null,"Forças Armadas","04","Isento",null,"Não tem Tag","Cat. 05","Automóvel e Caminhonete com reboque",null,null,"Cat. 05"]
[null,null,null,null,null,null,null,null,null,null,null,null,null,null,null,null,null,null,null,null,null,null,null,null,null,null,null,"Orgão Público","05","Isento",null,null,"Cat. 06","Caminhão (c/ reboque e Trator c/ semi-reboque)",null,null,"Cat. 06"]
[null,null,null,null,null,null,null,null,null,null,null,null,null,null,null,null,null,false,{"$f":"IF($R8=TRUE,1,0)","v":0},null,false,{"$f":"IF(U8=TRUE,1,0)","v":0},"quarta",false,{"$f":"IF(X8=TRUE,1,0)","v":0},null,null,"Polícia Militar","06","Isento",null,null,"Cat. 07","Caminhão (c/ reboque e Trator c/ semi-reboque)",null,null,"Cat. 07"]
[null,null,null,null,null,null,null,null,null,null,null,null,null,null,null,null,null,null,null,null,null,null,null,null,null,null,null,"Polícia Cívil","07","Isento",null,null,"Cat. 08","Caminhão (c/ reboque e Trator c/ semi-reboque)",null,null,"Cat. 08"]
[null,null,null,null,null,null,null,null,null,null,null,null,null,null,null,null,null,false,{"$f":"IF($R10=TRUE,1,0)","v":0},null,false,{"$f":"IF(U10=TRUE,1,0)","v":0},"quinta",null,null,null,null,"Ibama","08","Isento",null,null,"Cat. 09","Moto",null,null,"Cat. 09"]
[null,null,null,null,null,null,null,null,null,null,null,null,null,null,null,null,null,null,null,null,null,null,null,null,null,null,null,"Isentos Autarquias","09","Isento",null,null,"Cat. 6+1","Categoria 6 + 1",null,null,"Cat. 6+1"]
[null,null,null,null,null,null,null,null,null,null,null,null,null,null,null,null,null,false,{"$f":"IF($R12=TRUE,1,0)","v":0},null,false,{"$f":"IF(U12=TRUE,1,0)","v":0},"sexta","Lógica condicional \"Limitar passagens\"",null,null,null,"CNO",10,"Isentado",null,null,"Cat. 6+2","Categoria 6 + 2",null,null,"Cat. 6+2"]
[null,null,null,null,null,null,null,null,null,null,null,null,null,null,null,null,null,null,null,null,null,null,null,null,null,null,null,"Sub Empreiteiro (Engª)",11,"Isentado",null,null,"Cat. 6+3","Categoria 6 + 3",null,null,"Cat. 6+3"]
[null,null,null,null,null,null,null,null,null,null,null,null,null,null,null,null,null,false,{"$f":"IF($R14=TRUE,1,0)","v":0},null,false,{"$f":"IF(U14=TRUE,1,0)","v":0},"sabado",false,{"$f":"IF(X14=TRUE,1,0)","v":0},null,null,"Detran",12,"Isento",null,null,"Cat. 6+4","Especial",null,null,"Cat. 6+4"]
[null,null,null,null,null,null,null,null,null,null,null,null,null,null,null,null,null,null,null,null,null,null,null,null,null,null,null,"Politec (Perícia Oficial e Identificação Técnica)",13,"Isento"]
[null,null,null,null,null,null,null,null,null,null,null,null,null,null,null,null,null,false,{"$f":"IF($R16=TRUE,1,0)","v":0},null,false,{"$f":"IF(U16=TRUE,1,0)","v":0},"domingo",null,null,null,null,null,14]
[null,null,null,null,null,null,null,null,null,null,null,null,null,null,null,null,null,null,null,null,null,null,null,null,null,null,null,null,15]
[null,null,null,null,null,null,null,null,null,null,null,null,null,null,null,null,null,false,{"$f":"IF($R18=TRUE,1,0)","v":0},null,null,null,null,null,null,null,null,null,16]
[null,null,null,null,null,null,null,null,null,null,null,null,null,null,null,null,null,null,null,null,null,null,null,null,null,null,null,null,17]
[null,null,null,null,null,null,null,null,null,null,null,null,null,null,null,null,null,false,{"$f":"IF($R20=TRUE,1,0)","v":0},null,null,null,null,null,null,null,null,null,18]
[null,null,null,null,null,null,null,null,null,null,null,null,null,null,null,null,null,null,null,null,null,null,null,null,null,null,null,null,19]
[]
[null,"Procedimento:\nO veículo para ser cadastrado no sistema de arrecadação como não pagante, deverá seguir os passos conforme abaixo:\n1. O setor de Arrecadação recebe a documentação do veículo a ser cadastrado; \n    I. Cópia autenticada do certificado de licenciamento do veículo (CLV); e \n    II. Cópia autenticada do contrato de locação dos veículos; \n    III. Requerimento contendo marca, modelo, ano de fabricação e cor predominante do(s) veículo(s) e indicando o responsável pela solicitação, seu cargo ou função, telefones de contato e endereços físico e eletrônico; e \n   IV. Em caso de autarquia e fundação pública, cópia da norma que a instituiu, e também da certidão de registro civil, quando se tratar de fundação pública de direito privado.\n2. O setor de Arrecadação preenche o formulário abaixo, imprimi uma via do formulário, colhe assinatura de aprovação da Diretoria e envia toda documentação digitalizada O setor do CCA por e-mail;\n3. O setor do CCA confere a documentação e retorna informando que a solicitação foi recebida e será cadastrada (nos caso de: haverem campos em branco no formulário abaixo bem como a documentação incompleta o CCA retornará com a solicitação rejeitada);\n4. O setor do CCA tem o prazo de 01 (um) dia útil para realizar o cadastro e retornar com a informação da ativação da isenção após o aceite do formulário;\n5. O setor do CCA ficará responsável pelo armazenamento de toda documentação do cadastro.\n\nObs.: A isenção do veículo só passará a ter validade após o retorno do CCA com a confirmação da ativação da isenção no sistema de arrecadação.\n"]
[null,"FORMULÁRIO DE SOLICITAÇÃO DE CADASTRO DE VEÍCULOS NÃO PAGANTES"]
[]
[null,"GRUPO DE ISENÇÃO"]
[]
[null,null,"MOTIVO DA SOLICITAÇÃO:"]
[]
[null,null,"DESCRIÇÃO DO GRUPO:"]
[]
[null,null,"EXIBIR PARA ARRECADADOR:"]
[]
[null,"CRITÉRIO DE ISENÇÃO"]
[]
[null,"PLACA:",null,"TIPO:","[Definir]",null,"TAG:",null,null,{"$f":"IF($E$36=\"Automática\",\"EMISSOR:\",\"-\")","v":"-"}]
[]
[]
[null,"PRAÇA:",null,null,null,"DIAS DA SEMANA:",null,null,"LIMITAR DATAS:"]
[]
[null,null,"Todas",null,null,null,"Todos",null,"DE:",null,null,null,null,"hora"]
[]
[null,null,"P1 Itiquira",null,null,null,"Segunda-feira",null,"ATE:",null,null,null,null,"hora"]
[]
[null,null,"P2 Rondonopolis",null,null,null,"Terça-feira"]
[]
[null,null,"P3 Campo Verde",null,null,null,"Quarta-feira",null,"LIMITAR HORA:"]
[]
[null,null,"P4 Sto. Antonio Lerverger",null,null,null,"Quinta-feira",null,"DE:",null,"hora"]
[]
[null,null,"P5 Jangada",null,null,null,"Sexta-feira",null,"ATE:",null,"hora"]
[]
[null,null,"P6 Nobres",null,null,null,"Sábado"]
[]
[null,null,"P7 Nova Mutum",null,null,null,"Domingo",null,"LIMITAR PASSAGENS:"]
[]
[null,null,"P8 Lucas do Rio Verde",null,null,null,null,null,null,"PASSAGENS:"]
[]
[null,null,"P9 Sorriso",null,"SENTIDO:",null,null,null,null,"POR:"]
[]
[]
[null,"DADOS CADASTRAIS"]
[]
[null,"NOME:",null,null,null,null,null,null,null,"TELEFONE:"]
[null,""]
[null,"ENDEREÇO:"]
[null,""]
[null,"CATEGORIA:",null,null,{"$f":"IFERROR(VLOOKUP(C68,$AG$2:$AH$14,2,0),\".\")","v":"."}]
[null,""]
[null,"MODELO:",null,null,null,null,"MARCA:"]
[]
[]
[null,"AUTORIZAÇÃO:"]
[]
[]
[]
[]
[]
[]
[]
[]
[]
[null,null,"NOME DO SOLICITANTE DO CADASTRO",null,null,null,null,"NOME DO RESPONSÁVEL PELA AUTORIZAÇÃO"]